Cogmind - Beta 9.1 *** ADVENTURER MODE // 2019.11.03 @ 10:36:32 Player: Gregathol Result: Self-destructed Performance ------------- Evolutions (2) 1000 Regions Visited (3) 600 Robots Destroyed (13) 65 Value Destroyed (458) 458 Prototype IDs (1) 20 Alien Tech Used (0) 0 Bonus (0) 0 TOTAL SCORE: 2143 Bonus ------- None Cogmind --------- Core Integrity 522/550 Matter 272/300 Energy 250/250 System Corruption 0% Temperature Cool (0) Location -8/Materials Parts ------- Power (1) Ion Engine Propulsion (3) Aluminum Leg Aluminum Leg Aluminum Leg Utility (3) Large Storage Unit Advanced Sensor Array Medium Armor Plating Weapon (4) Improved EM Shotgun Assault Rifle Light Assault Rifle Shotgun Inventory (10) Ion Engine Aluminum Leg Small Storage Unit Small Storage Unit Large Storage Unit Signal Interpreter EM Pulse Gun Small Laser Light Assault Rifle Heavy Assault Rifle Peak State ------------ Power Ion Engine Propulsion Aluminum Leg Aluminum Leg Aluminum Leg Utility Large Storage Unit Advanced Sensor Array Medium Armor Plating Weapon Improved EM Shotgun Assault Rifle Light Assault Rifle Shotgun Inventory Ion Engine Aluminum Leg Small Storage Unit Small Storage Unit Large Storage Unit Signal Interpreter EM Pulse Gun Small Laser Light Assault Rifle Heavy Assault Rifle [Rating: 18] Favorites ----------- Power Ion Engine Engine Ion Engine Propulsion Aluminum Leg Leg Aluminum Leg Utility Small Storage Unit Device Advanced Sensor Array Storage Small Storage Unit Protection Medium Armor Plating Weapon Light Assault Rifle Energy Gun EM Pulse Gun Ballistic Gun Light Assault Rifle Build | -11 -10 -9 -8 ------- Run | Scr Mat Mat Mat Slots Evolved 4 | . . 2 2 Power . | . . . . Propulsion 1 | . . . 1 Utility 1 | . . . 1 Weapon 2 | . . 2 . Parts Attached 18 | 6 1 5 6 Power 1 | 1 . . . Engine 1 | 1 . . . Core . | . . . . Reactor . | . . . . Propulsion 5 | 2 . . 3 Treads . | . . . . Leg 5 | 2 . . 3 Wheel . | . . . . Hover . | . . . . Flight . | . . . . Utility 6 | 1 1 2 2 Device 1 | . . . 1 Storage 4 | 1 1 2 . Processor . | . . . . Hackware . | . . . . Protection 1 | . . . 1 Artifact . | . . . . Weapon 6 | 2 . 3 1 Energy Gun 2 | 1 . . 1 Energy Cannon . | . . . . Ballistic Gun 4 | 1 . 3 . Ballistic Cannon . | . . . . Launcher . | . . . . Special Weapon . | . . . . Impact Weapon . | . . . . Slashing Weapon . | . . . . Piercing Weapon . | . . . . Special Melee Weapon . | . . . . Unidentified Prototypes 1 | . . . 1 Parts Lost . | . . . . Power . | . . . . Propulsion . | . . . . Utility . | . . . . Weapon . | . . . . Highest Loss Streak . | . . . . Average Slot Usage (%) 98 | . 96 100 97 Engine 10 | . 14 11 9 Leg 23 | . 28 22 24 Device 4 | . . . 9 Storage 16 | . 25 22 9 Protection 4 | . . . 9 Energy Gun 2 | . 14 . . Ballistic Gun 35 | . 14 43 35 Naked Turns . | . . . . Heaviest Build 44 | 13 17 44 38 Greatest Support 30 | 20 20 20 30 Greatest Overweight (x) 3 | 3 . 2 1 Average Overweight (x) . | . . . 1 Largest Inventory Capacity 16 | 6 8 16 16 Average Capacity 8 | 5 7 8 10 Most Carried 10 | 2 4 9 10 Average Carried 6 | . 3 5 9 Final Capacity 10 | . . . 10 Final Carried 10 | . . . 10 Class Distribution -------------------- 44% | Tank 34% | Gunner 20% | Mutant Dominant Class ---------------- Mutant | -10/Materials Gunner | -9/Materials Tank | -8/Materials Resources | -11 -10 -9 -8 ----------- Run | Scr Mat Mat Mat Matter Collected 607 | 260 13 111 223 Remotely . | . . . . Salvage Created 543 | . 20 159 364 Parts 33 | . 4 6 23 Haulers Intercepted . | . . . . Recyclers Shooed . | . . . . Parts Field Recycled . | . . . . Retrieved Matter . | . . . . Parts Self-Destructed . | . . . . Prevented . | . . . . Kills | -11 -10 -9 -8 ------- Run | Scr Mat Mat Mat Combat Hostiles Destroyed 10 | . . 3 7 Guns 10 | . . 3 7 Classes Destroyed 6 | . 1 1 4 Worker 1 | . . . 1 Watcher 2 | . 1 . 1 Swarmer 1 | . . . 1 Grunt 5 | . . . 5 Brawler 1 | . . . 1 Sentry 3 | . . 3 . Best Kill Streak 4 | . 1 2 4 Combat Bots Only 3 | . . 2 3 Max Kills in Single Turn 1 | . 1 1 1 Gunslinging . | . . . . Exploded . | . . . . Melee . | . . . . Uniques/NPCs Destroyed . | . . . . Combat | -11 -10 -9 -8 -------- Run | Scr Mat Mat Mat Damage Taken 354 | . . 172 182 Core 61 | . . 33 28 Absorbed by Shields . | . . . . Core Remaining (%) 97 | 100 100 91 . Volleys Fired 29 | . 1 9 19 Largest 4 | . 2 4 4 Hottest 83 | . 60 83 83 Shots Fired 114 | . 2 36 76 Gun 114 | . 2 36 76 Cannon . | . . . . Launcher . | . . . . Special . | . . . . Kinetic 113 | . 1 36 76 Thermal . | . . . . Explosive . | . . . . Electromagnetic 1 | . 1 . . Robot Hit Streak 26 | . 2 26 22 Robot Miss Streak 2 | . . 1 2 Penetration Max . | . . . . Secondary Targets 1 | . . . 1 Max Gunslinging Chain 1 | . . . 1 Shots Hit Robots 83 | . 2 28 53 Core Hits 33 | . 1 7 25 Critical Hits 2 | . . . 2 Critical Kills 1 | . . . 1 Critical Parts Destroyed 1 | . . . 1 Melee Attacks . | . . . . Impact . | . . . . Slashing . | . . . . Piercing . | . . . . Sneak Attacks . | . . . . Combat Hostiles . | . . . . Follow-up Attacks . | . . . . Damage Inflicted 915 | . 36 325 554 Guns 914 | . 36 325 553 Cannons . | . . . . Explosions . | . . . . Melee . | . . . . Ramming 1 | . . . 1 Kinetic 890 | . 12 325 553 Thermal . | . . . . Explosive . | . . . . Electromagnetic 24 | . 24 . . Impact . | . . . . Slashing . | . . . . Piercing . | . . . . Highest Corruption . | . . . . Average Corruption . | . . . . Corruption Purged . | . . . . Overload Shots . | . . . . Overflow Damage . | . . . . Projectiles . | . . . . Explosions . | . . . . Melee . | . . . . Knockbacks . | . . . . Impact . | . . . . Kinetic . | . . . . Secondary . | . . . . Self-Inflicted Damage . | . . . . Shots . | . . . . Rammed . | . . . . Targets Rammed 1 | . . . 1 Kicked 1 | . . . 1 Crushed . | . . . . Highest Temperature 131 | . . 106 131 Average Temperature 52 | . . 52 51 Received Heat Transfer 171 | . . 63 108 Siege Activations . | . . . . Robots Corrupted . | . . . . Combat Hostiles . | . . . . Parts Fried . | . . . . Impact Corruptions . | . . . . Robots Melted . | . . . . Combat Hostiles . | . . . . Parts Melted . | . . . . Heat Transferred . | . . . . Parts Sabotaged . | . . . . Parts Stolen . | . . . . Parts Stripped . | . . . . Power Chain Reactions . | . . . . Missiles Intercepted . | . . . . Alert | -11 -10 -9 -8 ------- Run | Scr Mat Mat Mat Peak Influence 281 | . 20 127 281 Average Influence 87 | . 9 58 152 Maximum Alert Level 1 | . . . 1 Low Security (%) 81 | . . . . Level 1 18 | . . . . Level 2 . | . . . . Level 3 . | . . . . Level 4 . | . . . . Level 5 . | . . . . High Security . | . . . . Max Security . | . . . . Squads Dispatched 2 | . . . 2 Investigation . | . . . . Extermination . | . . . . Reinforcement 2 | . . . 2 Assault . | . . . . Garrison . | . . . . Intercept . | . . . . Construction Impeded 1 | . . . 1 Haulers Reinforced . | . . . . Stealth | -11 -10 -9 -8 --------- Run | Scr Mat Mat Mat Distress Signals 3 | . . . 3 Communications Jammed . | . . . . Distress Signals . | . . . . Times Spotted 24 | . 4 4 16 Peak Tracking Total 8 | . 2 3 8 Tactical Retreats . | . . . . Traps | -11 -10 -9 -8 ------- Run | Scr Mat Mat Mat Traps Triggered 1 | . . 1 . Indirectly . | . . . . Trap Hack Attempts . | . . . . Triggered . | . . . . Disarmed . | . . . . Reprogrammed . | . . . . Reused . | . . . . Traps Extracted . | . . . . Installed . | . . . . Triggered . | . . . . Machines | -11 -10 -9 -8 ---------- Run | Scr Mat Mat Mat Machines Disabled . | . . . . Max in Single Turn . | . . . . Machines Sabotaged . | . . . . Garrisons Compromised . | . . . . Overloaded Fab Kills . | . . . . Fab Network Shutdowns . | . . . . Hacking | -11 -10 -9 -8 --------- Run | Scr Mat Mat Mat Machines Accessed 4 | . 3 . 1 Terminals 4 | . 3 . 1 Fabricators . | . . . . Repair Stations . | . . . . Recycling Units . | . . . . Scanalyzers . | . . . . Garrison Access . | . . . . Total Hacks 9 | . 7 . 2 Successful 6 | . 4 . 2 Failed 3 | . 3 . . Catastrophic . | . . . . Database Lockouts . | . . . . Manual 6 | . 6 . . Terminals 9 | . 7 . 2 Fabricators . | . . . . Repair Stations . | . . . . Recycling Units . | . . . . Scanalyzers . | . . . . Garrison Access . | . . . . Terminal Hacks 6 | . 4 . 2 Record 1 | . 1 . . Level Access Points 1 | . 1 . . Terminal Index 1 | . 1 . . Locate Traps 1 | . 1 . . Recall Reinforcements 1 | . . . 1 Zone Layout 1 | . . . 1 Fabricator Hacks . | . . . . Repair Station Hacks . | . . . . Recycling Unit Hacks . | . . . . Scanalyzer . | . . . . Garrison Access Hacks . | . . . . Unauthorized Hacks . | . . . . Terminals . | . . . . Fabricators . | . . . . Repair Stations . | . . . . Recycling Units . | . . . . Scanalyzers . | . . . . Garrison Access . | . . . . Data Cores Recovered . | . . . . Used . | . . . . Hacking Detections 1 | . 1 . . Full Trace Events . | . . . . Feedback Events . | . . . . Feedback Blocked . | . . . . Robot Schematics Acquired . | . . . . Robots Built . | . . . . Matter . | . . . . Time . | . . . . Total Robot Build Rating . | . . . . Part Schematics Acquired . | . . . . Parts Built . | . . . . Matter . | . . . . Time . | . . . . Total Part Build Rating . | . . . . Parts Repaired . | . . . . Time . | . . . . Parts Recycled . | . . . . Recycled Matter . | . . . . Retrieved Matter . | . . . . Retrieved Components . | . . . . Parts Scanalyzed . | . . . . Part Schematics Acquired . | . . . . Parts Damaged . | . . . . Bothacking | -11 -10 -9 -8 ------------ Run | Scr Mat Mat Mat Used RIF Installer . | . . . . Robots Hacked . | . . . . Non-combat . | . . . . Combat . | . . . . Robot Hacks Applied . | . . . . Relay Couplers Released . | . . . . Robots Rewired . | . . . . Allies Hacked . | . . . . Hacks Repelled . | . . . . Allies | -11 -10 -9 -8 -------- Run | Scr Mat Mat Mat Total Allies . | . . . . Largest Group . | . . . . Highest-Rated Group . | . . . . Highest-Rated Ally . | . . . . Total Orders . | . . . . Ally Attacks . | . . . . Total Damage . | . . . . Kills . | . . . . Allies Corrupted . | . . . . Allies Melted . | . . . . Intel | -11 -10 -9 -8 ------- Run | Scr Mat Mat Mat Robot Analysis Total . | . . . . Derelict Logs Recovered . | . . . . Drone Launches . | . . . . Drone Recoveries . | . . . . Exploration | -11 -10 -9 -8 ------------- Run | Scr Mat Mat Mat Turns Passed 1025 | 79 143 359 444 Spaces Moved 557 | 58 114 188 197 Core 13 | 13 . . . Treads . | . . . . Legs 544 | 45 114 188 197 Wheels . | . . . . Hover . | . . . . Flight . | . . . . Fastest Speed 50 | 50 120 120 150 Average Speed 131 | 118 120 121 150 Slowest Speed 200 | 200 120 180 150 Overloaded Moves . | . . . . Propulsion Burnouts . | . . . . Robots Hopped . | . . . . Cave-ins Triggered . | . . . . Exploration Rate (%) 20 | 4 23 30 26 Regions Visited 3 Branch Regions . Pre-discovered Areas . | . . . . Known Exits Taken 1 | . 1 . . Unknown Exits Taken 2 | 1 . 1 . Scrap Searched . | . . . . Spaces Dug . | . . . . Terrain Destroyed . | . . . . Melee . | . . . . Projectile . | . . . . AOE . | . . . . Actions | -11 -10 -9 -8 --------- Run | Scr Mat Mat Mat Total 783 | 65 117 298 303 Wait 170 | . . 92 78 Move 554 | 57 113 187 197 Hop . | . . . . Pick Up 10 | 2 2 5 1 Fast Attach 8 | 6 1 . 1 Attach 3 | . . 2 1 Detach . | . . . . Swap 7 | . . 3 4 Drop 1 | . . . 1 Fire 29 | . 1 9 19 Melee . | . . . . Ram . | . . . . Kick 1 | . . . 1 Crush . | . . . . Escape Stasis . | . . . . Rewire . | . . . . Trap . | . . . . Miscellaneous . | . . . . Route ------- -11/Scrapyard -10/Materials (discovered 3 exits: *Mat x3) -9/Materials -8/Materials History --------- Turn | Location | Event 8 | -11/Scrapyard | Discovered new exit (range 16) 80 | -11/Scrapyard | Entered Materials 161 | -10/Materials | Identified exit to Materials 223 | -10/Materials | Entered another Materials area 223 | -9/Materials | Evolved 2 slots: Weapon x2 527 | -9/Materials | Build established: Gunner 543 | -9/Materials | Discovered new exit (range 16) 582 | -9/Materials | Entered another Materials area 582 | -8/Materials | Evolved 2 slots: Propulsion x1, Utility x1 865 | -8/Materials | Build established: Tank 1026 | -8/Materials | Self-destructed Last Messages --------------- 00796_ R-06 Scavenger collects Aluminum Leg. 00799_ K-01 Serf collects debris. 00800_ R-06 Scavenger collects Lgt. Nuclear Core. 00801_ Acquired 18 matter. 00803_ R-06 Scavenger collects Aluminum Leg. 00805_ K-01 Serf collects debris. 00807_ R-06 Scavenger collects Imp. Heat Sink. 00808_ K-01 Serf collects debris. 00810_ Extracted 48 matter. 00839_ Acquired 16 matter. 00878_ W-25 Informer destroyed. 00884_ Acquired 9 matter. 00926_ S-10 Pest destroyed. 00930_ K-01 Serf collects debris. 00955_ R-06 Scavenger collects Flight Unit. 00978_ W-25 Informer distress signal alerts nearby ally. 00997_ Dropped Aluminum Leg. 00997_ Acquired Prototype Energy Gun. 00998_ Identified Imp. EM Shotgun. [Achievement: Achiever] Map ----- +----------------------------------------------------+ | # ## #### ####%#### """"" #???? | | " # ## #??# ## #??# """"" #???? | | " ############ #??#!!!!!!##%#??# #???? | | " #??????????# #??#!!!!!!## #??##########???? | | ?####??????????# #??######### #???????????????? | | ???????????????# #??????????# #???????????????? | | ????????????####+##+###????????# ##############??? | | ????????????# #????????# | | ???????????????????????????????# | | ???????????????????????????????# """ """ """??? | | ???????????????????????????????# """ """ ""???? | | ???????????????????????????????# """ """ ""???? | | ???????????????????????????????# """ """ """ ?? | | ?????????????????????########### ? | | ?????????????????????# %= # ? | | ?????????????????????#= = # ? | | ?????????????????????# = # | | ?????????????????????# + | | ?????????????????????# # = | | ?????????????????????# ?### #####+#######?? | | ?????????????????????# ! #?# #?????????????? | | ?????????????????????# #?# #?????????????? | | ?????????????????????####+##+###?# #?????????????? | | ????????????????????????# ##### #?????????????? | | ????????????????????????# % #?????????????? | | ????????????????????????#@#####+####?????????????? | | ????????????????????????#k#?# #?????????????? | | ????????????????????????Y #?# !#?????????????? | | ????????????????????????]!#?# """ #?????????????? | | ??????????????????????? ]!#?# """ #?????????????? | | ???????????????????????####?# """ #?????????????? | | ????????????????????????????# #?????????????? | | ????????????????????????????########?????????????? | | ?????????????????????????????????????????????????? | | ?????????????????????????????????????????????????? | | ?????????????????????????????????????????????????? | | ?????????????????????????????????????????????????? | | ?????????????????????????????????????????????????? | | ?????????????????????????????????????????????????? | | ?????????????????????????????????????????????????? | | ?????????????????????????????????????????????????? | | ?????????????????????????????????????????????????? | | ?????????????????????????????????????????????????? | | ?????????????????????????????????????????????????? | | ?????????????????????????????????????????????????? | | ?????????????????????????????????????????????????? | | ?????????????????????????????????????????????????? | | ?????????????????????????????????????????????????? | | ?????????????????????????????????????????????????? | | ?????????????????????????????????????????????????? | +----------------------------------------------------+ Best States ------------- Heat Dissipation 31 Energy Generation 10 Energy Capacity 250 Matter Stores 300 Matter Capacity 300 Sight Range 16 Robot Scan Range 16 Terrain Scan Density 10 Armor Coverage 225 Resistance: KI 20 Resistance: TH 20 Resistance: EX 20 Resistance: EM 20 Resistance: I 20 Resistance: S 20 Resistance: P 20 Evasion (%) 40 Item Schematics ----------------- None Robot Schematics ------------------ None Fabricated ------------ Nothing Alien Tech Used ----------------- None Achievements -------------- Achiever GoHome() Challenges ------------ None Game ------ Seed ChainRecoilDoublenader Manual? 0 Play Time 00:10:18 Cumulative 102.5 hours Start 2019.10.26 @ 16:31:45 End 2019.11.03 @ 10:36:32 Sessions 3 Manual Loads 0 Difficulty Adventurer Special Mode None Game No. 76 Rogue 66 Adventurer 5 Explorer 0 Win Type - Total 0 Types 0/0/0/0/0/0/0 Lore% 14 Gallery% 41 Achievement% 25 Wizard Run 0 Options --------- ASCII 0 Keyboard 0 Movement Numpad Keybinds 0 Fullscreen 2 Font 18/X11Bold Map View 76x50 Tactical HUD 1 Map Filters NONE Filters NONE Steam X RUN: 28f86bc6-22ed-4e8b-9e9c-52e58141d12d